Cogmind - Beta 16 @@@ ROGUE MODE // 2025.11.27 @ 01:18:02 Player: Cherman0 Result: Destroyed by H-88 Terminator with Heavy Machine Gun Performance ------------- Evolutions (8) 4000 Regions Visited (27) 5400 Robots Destroyed (546) 2730 Value Destroyed (25272) 25272 Prototype IDs (92) 1840 Alien Tech Used (2) 400 Bonus (17290) 17290 TOTAL SCORE: 56932 Bonus ------- Triggered High Security 500 High Alert Combat Kills 5774 Follower Combat Kills 2600 Entered Garrisons 1000 Used RIF Installer 3000 Aligned with FarCom 300 Used Core Reset Matrix 3000 Met Sigix 2000 Friendly Fire -884 Cogmind --------- Core Integrity 0/1450 Matter 270/300 Energy 29/100 System Corruption 0% Temperature Cool (0) Movement Core (50) Location -2/Section 7 Parts ------- > --- POWER (3) -------- (None) > --- PROPULSION (6) --- (None) > --- UTILITY (12) ----- Experimental Optical Array Advanced Transmission Jammer > --- WEAPON (2) ------- (None) > --- INVENTORY (5) ---- Subatomic Replicator Sigix Containment Pod Peak State ------------ > --- POWER ------------ Particle Reactor Compact Particle Reactor Light Quantum Reactor > --- PROPULSION ------- Centrium Leg Heavy Shield Leg Wheel High-density Centrium Wheel High-density Centrium Wheel > --- UTILITY ---------- Advanced Cooling System Huge Storage Unit Experimental Optical Array Seismic Detector Experimental Targeting Computer Experimental Core Analyzer Hacking Suite Advanced System Shield Relay Coupler [Proto] Relay Coupler [Proto] Relay Coupler [Proto] Relay Coupler [Proto] > --- WEAPON ----------- Advanced Remote Datajack Plasma Lance > --- INVENTORY -------- Antimatter Reactor Particle Reactor Particle Reactor Advanced Cryofiber Web Advanced Cooling System Advanced Cooling System Advanced Coolant Injector Matter Compressor Experimental Matter Compressor Advanced Terrain Scan Processor Seismic Detector Advanced Transmission Jammer Cloak of Protection Graphene Brace Advanced Point Defense System Advanced Component Analysis Suite Long-range Tractor Beam Heavy Proton Cannon Heavy Proton Cannon Enhanced Nova Cannon Enhanced Nova Cannon Enhanced Nova Cannon Enhanced Nova Cannon Neutron Missile Launcher Improved Plasma Cutter [Rating: 182] Favorites ----------- Power Antimatter Reactor Engine Cooled Ion Engine Power Core Micro Fission Core Reactor Antimatter Reactor Propulsion Light Treads Treads Light Treads Leg Flexi-carbon Leg Wheel High-density Centrium Wheel Flight Unit Improved Flight Unit Utility Seismic Detector Device Seismic Detector Storage Huge Storage Unit Processor Experimental Core Analyzer Hackware Relay Coupler [Proto] Protection Reactive Plating Weapon Gatling Laser Energy Gun Gatling Laser Energy Cannon Enhanced Nova Cannon Ballistic Gun Enhanced Autogun Ballistic Cannon Compact Mass Driver Launcher Mini Grenade Launcher Special Weapon Remote Datajack Impact Weapon Mace Piercing Weapon Plasma Lance Special Melee Weapon Datajack Build | -11 -10 -10 -9 -9 -9 -8 -8 -8 -7 -7 -7 -7 -7 -7 -6 -6 -5 -5 -4 -4 -4 -4 -4 -3 -2 -2 -2 ------- Run | Yrd Mat Min Mat Min Exi Min Mat Gar Fac Was Fac Gar Fac Gar Fac Gar Fac Gar Fac Was Fac Arm Lab Res Res Qua Sec Slots Evolved 16 | . . . 2 . . . 2 . 2 . . . . . 2 . 2 . 2 . . . . 2 2 . . Power 2 | . . . . . . . . . . . . . . . 1 . . . 1 . . . . . . . . Propulsion 4 | . . . 1 . . . 1 . . . . . . . . . . . . . . . . 2 . . . Utility 10 | . . . 1 . . . 1 . 2 . . . . . 1 . 2 . 1 . . . . . 2 . . Weapon . | . . . . . . . . . . . . . . . . . . . . . . . . . . . . Parts Attached 276 | 5 10 . 28 4 2 4 14 19 9 6 3 6 10 4 1 13 20 13 4 8 7 25 4 15 10 28 4 Power 40 | . 2 . 3 . . . . 2 2 2 . . 1 . 1 6 2 1 . 3 . 3 2 3 1 6 . Engine 10 | . 2 . 3 . . . . 1 1 . . . . . 1 2 . . . . . . . . . . . Core 4 | . . . . . . . . 1 1 . . . . . . 1 1 . . . . . . . . . . Reactor 26 | . . . . . . . . . . 2 . . 1 . . 3 1 1 . 3 . 3 2 3 1 6 . Propulsion 65 | 2 . . 16 2 . 1 11 6 . 2 . . 2 . . . . 3 . 2 1 6 . 4 2 4 1 Treads 50 | 2 . . 15 2 . 1 11 6 . 2 . . 2 . . . . 3 . 2 1 1 . . . 2 . Leg 11 | . . . . . . . . . . . . . . . . . . . . . . 5 . 2 2 1 1 Wheel 3 | . . . . . . . . . . . . . . . . . . . . . . . . 2 . 1 . Hover . | . . . . . . . . . . . . . . . . . . . . . . . . . . . . Flight 1 | . . . 1 . . . . . . . . . . . . . . . . . . . . . . . . Utility 107 | 2 2 . 2 2 1 3 2 7 5 1 2 3 5 3 . 4 14 5 3 1 3 11 1 5 5 13 2 Device 52 | 2 1 . . 1 . 1 . 1 3 . 2 1 1 2 . 1 8 2 3 . 1 7 1 3 3 6 2 Storage 9 | . 1 . 1 . 1 . . . . . . . 1 1 . . 1 . . . 1 . . 1 . 1 . Processor 6 | . . . . . . . . 1 . . . . 1 . . . 1 2 . . . . . 1 . . . Hackware 15 | . . . . . . . 1 . 1 1 . . 1 . . 1 2 . . . . 1 . . 2 5 . Protection 25 | . . . 1 1 . 2 1 5 1 . . 2 1 . . 2 2 1 . 1 1 3 . . . 1 . Artifact . | . . . . . . . . . . . . . . . . . . . . . . . . . . . . Weapon 64 | 1 6 . 7 . 1 . 1 4 2 1 1 3 2 1 . 3 4 4 1 2 3 5 1 3 2 5 1 Energy Gun 20 | . 1 . 2 . . . . 1 1 . . 3 2 . . 1 3 1 . 1 1 2 . 1 . . . Energy Cannon 13 | . . . . . . . . . 1 . 1 . . . . . . . 1 1 . 1 1 1 2 3 1 Ballistic Gun 11 | 1 2 . 4 . . . 1 . . . . . . . . 1 . 1 . . . 1 . . . . . Ballistic Cannon 2 | . . . . . . . . . . . . . . . . 1 . . . . . . . 1 . . . Launcher 6 | . 1 . 1 . . . . . . . . . . . . . . . . . 2 1 . . . 1 . Special Weapon 7 | . 2 . . . . . . 1 . 1 . . . . . . 1 1 . . . . . . . 1 . Impact Weapon 2 | . . . . . . . . 1 . . . . . 1 . . . . . . . . . . . . . Slashing Weapon . | . . . . . . . . . . . . . . . . . . . . . . . . . . . . Piercing Weapon 1 | . . . . . . . . . . . . . . . . . . 1 . . . . . . . . . Special Melee Weapon 2 | . . . . . 1 . . 1 . . . . . . . . . . . . . . . . . . . Unidentified Prototypes 27 | . . . 7 . . . . . . . 1 . 1 1 . 1 . 2 1 . 2 2 . 5 2 . 2 Parts Lost 103 | . 4 . . . . 1 1 7 . . . 4 1 1 . 7 5 3 . . . 32 . 1 8 15 13 Power 21 | . 1 . . . . . . . . . . . 1 . . 2 2 1 . . . 6 . 1 . 5 2 Propulsion 19 | . . . . . . . . 3 . . . . . . . . . 1 . . . 5 . . 5 2 3 Utility 46 | . 1 . . . . 1 1 3 . . . 3 . 1 . 4 3 1 . . . 16 . . 2 4 6 Weapon 17 | . 2 . . . . . . 1 . . . 1 . . . 1 . . . . . 5 . . 1 4 2 Highest Loss Streak 12 | . 2 . . . . 1 1 6 . . . 2 1 1 . 2 2 1 . . . 10 . 1 5 4 12 To Critical Strikes 1 | . 1 . . . . . . . . . . . . . . . . . . . . . . . . . . Average Backups 19 | 6 11 13 14 15 16 18 19 19 19 19 19 18 21 23 21 21 23 23 23 23 23 22 20 20 24 20 17 Power 1 | 1 . . . 1 1 1 1 1 1 1 1 1 1 2 1 1 1 1 . . 1 1 1 . 2 1 . Propulsion 2 | 3 4 5 3 3 3 3 3 2 2 1 1 1 3 3 2 2 1 1 1 1 1 . . . . . . Utility 8 | . 2 3 3 4 5 8 7 8 9 10 10 8 9 10 9 8 10 12 13 13 13 12 11 12 14 11 10 Weapon 5 | 1 3 3 5 4 4 4 5 5 5 5 5 4 5 6 6 7 6 6 7 7 6 6 5 5 5 5 2 Tool/Special . | . . . . . . . . . . . . . . . . . . . . . . . . . . . . Unused Backups 59 | 3 3 . 7 1 . 1 3 7 1 6 . . 6 3 . 1 . 3 1 1 1 . . 1 1 2 7 Power 9 | 1 1 . . . . . . 1 . 2 . . . 2 . . . . . . . . . . 1 . 1 Propulsion 12 | . 2 . 2 . . . . . . 3 . . 4 . . 1 . . . . . . . . . . . Utility 22 | 1 . . 1 . . . 1 3 1 1 . . 1 1 . . . 2 1 1 1 . . 1 . 1 5 Weapon 13 | 1 . . 4 1 . . 2 2 . . . . 1 . . . . 1 . . . . . . . 1 . Tool/Special 3 | . . . . . . 1 . 1 . . . . . . . . . . . . . . . . . . 1 Average Slot Usage (%) 90 | . 99 100 96 100 100 99 99 99 99 88 84 83 84 84 85 84 87 89 88 89 88 87 69 93 93 81 69 Engine 4 | . 13 14 11 11 11 11 9 6 3 1 . . . . 5 5 3 . . . . . . . . . . Reactor 5 | . . . . . . . . . . 5 7 7 7 7 6 5 6 4 10 13 15 14 6 12 13 11 7 Treads 17 | . 27 28 32 33 33 33 36 35 30 18 15 15 15 15 13 13 10 13 10 10 10 7 . . . 2 3 Leg 1 | . . . . . . . . . . . . . . . . . . . . . . 5 15 19 11 1 1 Wheel 1 | . . . . . . . . . . . . . . . . . . . . . . . . 4 8 8 3 Device 15 | . 13 14 10 10 11 7 . 4 15 15 7 12 11 7 13 18 28 16 20 24 25 25 23 29 31 13 15 Storage 7 | . 14 14 13 11 11 11 9 9 7 7 7 7 7 7 6 6 5 5 5 5 5 4 5 4 4 4 3 Processor 6 | . . . . . . . . 2 7 7 7 7 11 15 13 6 5 11 10 10 10 10 10 10 13 11 7 Hackware 6 | . . . . . . . 8 4 4 14 15 7 6 7 6 7 7 11 10 6 5 3 . . 2 18 16 Protection 5 | . . . 7 11 11 13 17 15 9 . 6 9 7 7 6 5 1 4 5 5 5 4 . . . . . Energy Gun 5 | . 2 14 1 . . . . 1 9 . 11 10 13 11 12 10 10 8 7 7 9 6 . . . . . Energy Cannon 1 | . . . . . . . . . . 6 3 . 1 . . . . . . 1 . 2 8 8 5 5 6 Ballistic Gun 6 | . 24 14 20 22 11 21 18 15 2 . . . . . . . . . . . . . . . . . . Peak Build Rating 182 | 7 8 8 23 24 24 27 33 41 49 60 64 66 67 70 76 79 103 121 131 129 136 137 114 163 169 182 168 Average Rating 76 | 6 7 8 20 22 20 25 32 35 45 57 62 61 64 66 73 73 91 106 125 124 127 126 106 145 163 168 151 On Entrance 70 | 6 7 8 8 22 22 24 26 33 41 48 60 61 66 67 68 73 78 96 121 126 124 132 75 114 156 161 155 Avg Prop Armor Cover (%) 13 | . . . . . . . . . . . . . . . . . . . . . . . . 7 9 15 4 Naked Turns . | . . . . . . . . . . . . . . . . . . . . . . . . . . . . Heaviest Build 180 | 14 30 28 45 45 65 74 75 75 77 72 82 108 133 126 143 137 132 132 146 151 173 180 163 179 174 176 139 Greatest Support 150 | 40 40 40 60 60 60 62 85 100 100 140 140 140 140 140 140 140 140 145 145 145 150 150 58 98 40 80 80 Greatest Overweight (x) 11 | . 1 . . . 1 1 . 1 . . . . . . 1 . 1 1 1 1 1 11 2 4 4 6 2 Average Overweight (x) . | . . . . . . 1 . . . . . . . . . . . . . . 1 1 2 2 3 3 . Largest Inventory Capacity 25 | 8 15 15 15 15 20 20 20 20 20 20 20 20 25 25 25 25 25 25 25 25 25 25 25 25 25 25 25 Average Capacity 21 | 8 13 15 15 15 19 20 20 20 20 20 20 20 23 25 25 25 25 25 25 25 25 24 25 25 25 25 23 Most Carried 25 | 8 15 14 15 15 17 19 20 20 20 20 20 20 25 25 24 25 25 25 25 25 25 25 23 25 25 25 25 Average Carried 20 | 6 11 13 14 15 16 18 19 19 19 19 20 19 22 24 22 22 24 24 24 24 24 22 19 20 24 22 21 Final Capacity 25 | 8 15 15 15 15 20 20 20 20 20 20 20 20 25 25 25 25 25 25 25 25 25 25 25 25 25 25 5 Final Carried 25 | 8 12 14 15 15 17 19 20 20 20 20 20 20 25 24 24 25 25 25 25 25 25 24 18 25 24 22 3 Class Distribution -------------------- 33% | Scavenger-Mutant 31% | Mutant 31% | Bothacker-Mutant Dominant Class ---------------- Mutant | -10/Materials Mutant | -10/Mines Mutant | -9/Materials Mutant | -9/Mines Mutant | -9/Exiles Mutant | -8/Mines Mutant | -8/Materials Scavenger-Mutant | -8/Garrison Scavenger-Mutant | -7/Factory Scavenger-Mutant | -7/Waste Mutant | -7/Factory Scavenger-Mutant | -7/Garrison Scavenger-Mutant | -7/Factory Scavenger-Mutant | -7/Garrison Scavenger-Mutant | -6/Factory Scavenger-Mutant | -6/Garrison Bothacker-Mutant | -5/Factory Bothacker-Mutant | -5/Garrison Botlord-Mutant | -4/Factory Bothacker-Mutant | -4/Waste Bothacker-Mutant | -4/Factory Bothacker-Mutant | -4/Armory Bothacker-Mutant | -4/Lab Scavenger-Mutant | -3/Research Scavenger-Mutant | -2/Research Bothacker-Mutant | -2/Quarantine Bothacker-Mutant | -2/Section 7 Resources | -11 -10 -10 -9 -9 -9 -8 -8 -8 -7 -7 -7 -7 -7 -7 -6 -6 -5 -5 -4 -4 -4 -4 -4 -3 -2 -2 -2 ----------- Run | Yrd Mat Min Mat Min Exi Min Mat Gar Fac Was Fac Gar Fac Gar Fac Gar Fac Gar Fac Was Fac Arm Lab Res Res Qua Sec Matter Collected 13099 | 346 560 46 1286 315 . 459 890 1164 249 219 110 481 458 475 95 705 565 443 104 290 358 1066 . 531 589 1155 140 Remotely 24 | . . . . . . . . . . . . . . . . . . . . . . 24 . . . . . Salvage Created 26176 | 239 623 . 1539 290 . 569 1023 863 85 1261 22 918 927 548 111 1249 1886 1255 129 1661 825 2902 . 931 1007 5178 135 Parts 1123 | 21 41 . 137 27 . 32 41 77 1 21 4 48 51 20 4 58 71 45 5 35 18 127 . 32 45 157 5 Haulers Intercepted 17 | . 1 . 6 . . . 2 . . . . . 5 . . . 1 . . . 1 . . 1 . . . Recyclers Shooed 11 | . 1 . 1 . . 1 2 . 1 . . . . . . . 4 . . . 1 . . . . . . Parts Field Recycled . | . . . . . . . . . . . . . . . . . . . . . . . . . . . . Retrieved Matter . | . . . . . . . . . . . . . . . . . . . . . . . . . . . . Parts Self-Destructed . | . . . . . . . . . . . . . . . . . . . . . . . . . . . . Prevented . | . . . . . . . . . . . . . . . . . . . . . . . . . . . . Parts Restored . | . . . . . . . . . . . . . . . . . . . . . . . . . . . . Kills | -11 -10 -10 -9 -9 -9 -8 -8 -8 -7 -7 -7 -7 -7 -7 -6 -6 -5 -5 -4 -4 -4 -4 -4 -3 -2 -2 -2 ------- Run | Yrd Mat Min Mat Min Exi Min Mat Gar Fac Was Fac Gar Fac Gar Fac Gar Fac Gar Fac Was Fac Arm Lab Res Res Qua Sec Combat Hostiles Destroyed 452 | . 15 . 34 9 . 11 11 31 . 4 . 38 15 14 3 30 31 33 2 6 12 62 . 11 14 65 1 Melee 1 | . . . . . . . . . . . . . . 1 . . . . . . . . . . . . . Guns 264 | . 12 . 29 7 . 6 11 18 . . . 19 14 11 3 24 25 25 1 . 10 49 . . . . . Cannons 69 | . . . . . . . . . . 3 . . . . . . . . . 5 . 7 . 8 13 33 . AOE 76 | . 3 . 5 2 . 5 . 13 . . . 17 . 1 . 5 4 7 . . . . . 2 . 12 . Classes Destroyed 25 | 2 5 . 4 3 . 2 . 2 . 1 . 1 . . . . 1 1 . . . 1 . . . 2 . Worker 8 | . . . 2 1 . . . . . . . . . . . . 2 . . . . . . 2 . 1 . Builder 6 | . . . 1 1 . 1 . . . . 1 . . . . . . . . . . . . . 1 1 . Tunneler 23 | 9 2 . 2 1 . 3 . . . . . . 1 . . . 2 . . . . . . 2 1 . . Hauler 17 | . 1 . 6 . . . 2 . . . . . 5 . . . 1 . . . 1 . . 1 . . . Recycler 10 | 1 . . . . . . 3 . 1 . . . 1 . . . 3 . . . . . . 1 . . . Mechanic 1 | . . . 1 . . . . . . . . . . . . . . . . . . . . . . . . Operator 10 | . 1 . 2 . . . . . . . . . 1 . . . . . 1 . . 2 . . 1 1 1 Watcher 17 | . 2 . 5 . . . 4 . . . . . 1 . . . 1 1 . . . 2 . . . 1 . Swarmer 109 | . 5 . 14 . . 3 . 17 . . . 19 3 1 2 6 4 10 . . . 22 . 3 . . . Cutter 11 | . . . . . . . . . . . . 3 . . . 5 . 3 . . . . . . . . . Saboteur 1 | . . . . . . . . . . . . . . . . . . . . . . 1 . . . . . Grunt 149 | . 10 . 12 2 . 5 5 6 . . . 4 1 7 . 9 11 16 . . 9 9 . 5 4 34 . Brawler 6 | . . . . . . 1 . . . . . . 1 1 . . . . . . 1 . . . . 2 . Duelist 11 | . . . . 1 . . . . . . . 4 . . . 1 1 . . . . 2 . . . 2 . Protector 2 | . . . . . . . . . . . . . . . . . . . . . . . . . . 2 . Researcher 1 | . . . . . . . . . . . . . . . . . . . . . . . . . . 1 . Sentry 52 | . . . 8 2 . . 5 4 . . . 8 3 2 . 6 . 1 . . . 9 . 2 1 . 1 Demolisher 2 | . . . . 1 . . . . . . . . . . . . . . . . . 1 . . . . . Specialist 10 | . . . . . . . . . . . . . . . . . 4 . . . . 6 . . . . . Hunter 24 | . . . . . . 2 1 1 . . . . 2 . 1 1 1 1 2 . . 2 . . 2 8 . Programmer 58 | . . . . . . . . 2 . . . . 5 3 . 1 10 . . . 2 10 . 1 7 17 . Behemoth 2 | . . . . . . . . 1 . . . . . . . 1 . . . . . . . . . . . Compactor 10 | . . . . . . . . . . 4 . . . . . . . . . 6 . . . . . . . Striker 2 | . . . . . . . . . . . . . . . . . . 2 . . . . . . . . . Assembled 3 | . . . . 3 . . . . . . . . . . . . . . . . . . . . . . . Martyr 4 | . . . . . . . . . . 2 . . . . . . . . . 2 . . . . . . . Best Kill Streak 11 | 4 3 . 6 3 . 4 3 6 1 1 1 9 3 5 2 4 5 8 2 2 4 9 . 4 6 11 1 Combat Bots Only 11 | . 3 . 5 3 . 4 2 6 . 1 . 9 3 5 2 4 4 8 2 2 4 9 . 3 6 11 1 Max Kills in Single Turn 4 | 1 3 . 4 2 . 2 1 3 1 1 1 2 2 2 2 3 4 2 1 1 1 2 . 2 1 4 1 Gunslinging 1 | . 1 . . . . . . . . . . . . . 1 . 1 . . . . 1 . . . . . Exploded 4 | . 3 . 3 2 . 2 . 3 . . . 2 . 1 . 3 4 2 . . . . . 1 . 4 . Melee 1 | . . . . . . . . . . . . . . 1 . . . . . . . . . . . . . Uniques/NPCs Destroyed . | . . . . . . . . . . . . . . . . . . . . . . . . . . . . Combat | -11 -10 -10 -9 -9 -9 -8 -8 -8 -7 -7 -7 -7 -7 -7 -6 -6 -5 -5 -4 -4 -4 -4 -4 -3 -2 -2 -2 -------- Run | Yrd Mat Min Mat Min Exi Min Mat Gar Fac Was Fac Gar Fac Gar Fac Gar Fac Gar Fac Was Fac Arm Lab Res Res Qua Sec Hostile Shots Fired 2708 | . 90 . 106 32 . 53 64 125 9 . . 252 91 104 5 166 171 119 28 . 110 655 . 46 113 269 100 Missed 804 | . 21 . 32 5 . 13 17 21 2 . . 92 35 38 2 53 39 34 9 . 30 169 . 19 36 99 38 Hits 1904 | . 69 . 74 27 . 40 47 104 7 . . 160 56 66 3 113 132 85 19 . 80 486 . 27 77 170 62 Melee 18 | . . . . 1 . 2 . . . . . 1 . . . 5 . 6 . . . . . . . 3 . Projectile 1886 | . 69 . 74 26 . 38 47 104 7 . . 159 56 66 3 108 132 79 19 . 80 486 . 27 77 167 62 AOE 29 | . . . . 5 . . . . . . . 3 . . . 4 . 3 . . . 14 . . . . . Critical Strikes 61 | . 1 . 4 2 . 2 2 3 . . . 3 2 1 . 5 3 5 . . 10 5 . . 6 6 1 Actively Blocked 9 | . . . . . . . . . . . . . . . . . . . . . . 2 . . 6 1 . Part Disruptions 2 | . . . . . . . . . . . . . . . . . . . . . . 2 . . . . . Damage Taken 26924 | . 721 . 782 484 . 467 646 1753 48 . . 1579 927 770 32 1484 1644 1331 163 . 817 6010 . 337 1506 3389 2034 Core 3304 | . 97 . 88 53 . 82 27 162 11 . . 157 119 119 . 63 124 105 25 . 39 539 . 42 80 515 857 Absorbed by Shields 5311 | . . . . . . . . . . . . . . . . 127 591 527 168 . 835 2490 . 239 334 . . Reduced by Siege Mode 898 | . . . . . . . . . . . . 16 . 24 . 76 91 77 50 . 41 285 . . . 61 177 Ignored by Resistances 1065 | . . . 65 22 . 60 75 200 7 . . 286 100 70 16 150 14 . . . . . . . . . . Regen/Repaired (Parts) 4409 | . 316 . 267 . . . 159 . . . . 47 1168 . 887 215 753 . . 152 60 385 . . . . . Core Remaining (%) 69 | 100 . 61 . . . 44 . 65 . . . . . 42 . 92 . 77 . . . . 47 96 . . . Volleys Fired 1472 | 24 78 . 124 20 . 36 66 89 4 61 7 54 54 23 6 73 104 63 10 59 47 159 . 35 47 208 21 Largest 2 | 2 2 . 2 2 . 2 2 2 2 1 1 2 2 2 2 2 2 2 2 1 2 2 . 2 2 2 1 Hottest 240 | 40 100 . 70 50 . 70 50 55 160 90 90 160 160 160 160 160 160 160 185 120 160 240 . 240 200 240 120 Shots Fired 2410 | 48 147 . 241 39 . 65 132 167 6 61 7 93 98 41 9 132 175 115 18 59 79 288 . 64 73 230 23 Gun 1717 | 48 140 . 236 38 . 57 132 161 4 . . 75 84 37 6 116 160 108 17 1 64 228 . . 5 . . Cannon 578 | . . . . . . . . . 2 54 7 . 14 2 2 5 5 . 1 52 15 55 . 62 68 211 23 Launcher 69 | . 1 . 5 1 . 8 . 6 . . . 16 . 2 . 6 1 6 . . . . . 2 . 15 . Special 46 | . 6 . . . . . . . . 7 . 2 . . 1 5 9 1 . 6 . 5 . . . 4 . Kinetic 828 | 48 123 . 226 38 . 51 132 161 . . . . . . . 5 . 3 . . . 20 . . 21 . . Thermal 1342 | . 23 . 10 . . . . . 6 54 7 75 98 39 8 116 165 105 18 53 79 263 . 62 39 118 4 Explosive 61 | . 1 . 5 1 . 8 . 6 . . . 16 . 2 . 6 1 6 . . . . . 2 . 7 . Electromagnetic 139 | . . . . . . 6 . . . . . . . . . . . . . . . . . . 13 101 19 Robot Hit Streak 71 | 7 10 . 13 5 . 10 18 11 4 24 3 33 34 15 13 71 58 26 26 42 43 30 . 27 29 16 7 Robot Miss Streak 8 | 2 3 . 5 2 . 3 3 3 3 2 . 4 8 3 2 5 2 2 1 1 2 4 . 2 2 5 2 Penetration Max . | . . . . . . . . . . . . . . . . . . . . . . . . . . . . Secondary Targets 43 | . 2 . 1 1 . 2 1 3 . . . 4 1 3 1 1 5 4 . . 2 12 . . . . . Max Gunslinging Chain 1 | . 1 . 1 1 . 1 1 1 . . . 1 1 1 1 1 1 1 . . 1 1 . . . . . Capacitor 162 | . . . . . . . . . . . . . . . . . . . . . . . . . . 139 23 Shots Hit Robots 1737 | 30 89 . 144 23 4 42 92 109 4 54 1 66 72 38 7 103 143 96 16 59 61 235 . 46 49 140 14 Core Hits 1343 | 14 37 . 70 17 . 29 37 52 2 11 1 85 69 39 7 108 127 127 15 13 70 244 . 26 30 109 4 Critical Kills 7 | . 1 . . . . . . . . 1 . . . . . . . . . 1 . . . 2 . 2 . Critical Parts Destroyed 5 | . . . 3 . . . . . . 1 . . . . . . . . . . . 1 . . . . . Critical Strikes 16 | . 2 . 3 . . . . . . 2 . . . . . . . . . 1 . 1 . 2 1 4 . Burn 1 | . 1 . . . . . . . . . . . . . . . . . . . . . . . . . . Meltdown 6 | . . . . . . . . . . 1 . . . . . . . . . 1 . . . 2 . 2 . Destroy 5 | . 1 . 3 . . . . . . . . . . . . . . . . . . 1 . . . . . Blast 1 | . . . . . . . . . . . . . . . . . . . . . . . . . 1 . . Corrupt 2 | . . . . . . . . . . . . . . . . . . . . . . . . . . 2 . Smash 1 | . . . . . . . . . . 1 . . . . . . . . . . . . . . . . . Melee Attacks 125 | . . . . . 4 . . 16 5 3 . 40 . 19 . 24 1 9 . 2 . . . . . 2 . Impact 109 | . . . . . . . . 10 5 3 . 40 . 19 . 24 1 7 . . . . . . . . . Slashing . | . . . . . . . . . . . . . . . . . . . . . . . . . . . . Piercing 6 | . . . . . . . . . . . . . . . . . . 2 . 2 . . . . . 2 . Sneak Attacks 16 | . . . . . 4 . . 6 . 3 . . . . . . . . . 2 . . . . . 1 . Combat Hostiles . | . . . . . . . . . . . . . . . . . . . . . . . . . . . . Follow-up Attacks . | . . . . . . . . . . . . . . . . . . . . . . . . . . . . Damage Inflicted 56078 | 323 1141 5 3009 562 . 1323 1646 2584 70 1763 32 3650 2011 1236 123 3371 4477 3866 444 2370 1784 6699 . 2563 2208 8378 440 Guns 29854 | 323 1000 . 2432 399 . 657 1581 1846 70 . . 1611 1984 935 123 2611 3976 2502 444 30 1711 5472 . . 147 . . Cannons 15336 | . . . . . . . . . . 1619 32 . . 33 . 157 . . . 2169 43 1227 . 2069 1970 5637 380 Explosions 9841 | . 121 . 533 127 . 629 . 738 . . . 2037 . 93 . 600 433 1360 . . . . . 494 . 2616 60 Melee 615 | . . . . . . . . . . 144 . . . 175 . . . . . 171 . . . . . 125 . Ramming 432 | . 20 5 44 36 . 37 65 . . . . 2 27 . . 3 68 4 . . 30 . . . 91 . . Kinetic 9411 | 323 886 . 2383 399 . 565 1581 1846 . . . . . . . 82 . 83 . . . 409 . . 854 . . Thermal 33207 | . 114 . 49 . . . . . 70 1619 32 1611 1984 968 123 2686 3976 2419 444 2199 1754 6290 . 2069 827 3868 105 Explosive 8284 | . 121 . 533 127 . 629 . 738 . . . 2037 . 93 . 600 433 1360 . . . . . 494 . 1119 . Electromagnetic 4129 | . . . . . . 92 . . . . . . . . . . . . . . . . . . 436 3266 335 Impact 319 | . . . . . . . . . . 144 . . . 175 . . . . . . . . . . . . . Slashing . | . . . . . . . . . . . . . . . . . . . . . . . . . . . . Piercing 296 | . . . . . . . . . . . . . . . . . . . . 171 . . . . . 125 . Highest Corruption 13 | . . . . . . 5 . . . . . 1 3 . . 4 4 4 . . 1 12 12 2 9 13 13 Average Corruption 5 | . . . . . . 5 . . . . . 1 1 . . 4 1 4 . . 1 6 12 1 5 11 13 Corruption Purged 3 | . . . . . . . . . . . . . 3 . . . . . . . . . . . . . . Corruption Blocked . | . . . . . . . . . . . . . . . . . . . . . . . . . . . . Effects 457 | . . . . . . 56 . . . . . 10 22 . . 37 18 33 . . 5 78 2 5 6 163 22 Message Errors 114 | . . . . . . 15 . . . . . 2 8 . . 9 5 7 . . 2 16 . 2 2 41 5 Matter Fused 109 | . . . . . . 19 . . . . . 3 6 . . 12 2 6 . . . 15 . . 1 41 4 Heat Flow Errors 52 | . . . . . . 4 . . . . . . 3 . . 4 4 6 . . 1 8 1 . 1 17 3 Energy Discharges 55 | . . . . . . 8 . . . . . 1 2 . . 1 . 4 . . 2 16 . 1 . 16 4 Parts Rejected 5 | . . . . . . . . . . . . . . . . . . . . . . 1 . . . 4 . Parts Fused 5 | . . . . . . . . . . . . . . . . 1 1 1 . . . . . . . 2 . Data Loss (minor) 46 | . . . . . . 5 . . . . . 1 . . . 6 3 3 . . . 7 . 2 2 15 2 Data Loss (major) 19 | . . . . . . 2 . . . . . . . . . . . 3 . . . 5 . . . 8 1 Misfires 22 | . . . . . . 1 . . . . . 1 3 . . 3 1 . . . . 5 . . . 6 2 Alerts 15 | . . . . . . 2 . . . . . 2 . . . . 2 2 . . . 1 1 . . 5 . Misdirections 5 | . . . . . . . . . . . . . . . . . . . . . . . . . . 4 1 Weapon Failures 10 | . . . . . . . . . . . . . . . . 1 . 1 . . . 4 . . . 4 . Overload Shots . | . . . . . . . . . . . . . . . . . . . . . . . . . . . . Overflow Damage 1199 | . . . . . . 36 . 22 . 73 . 51 . 36 . . . 41 . . 3 . . 152 46 660 79 Projectiles 552 | . . . . . . . . . . . . . . . . . . . . . 3 . . 109 34 351 55 Explosions 408 | . . . . . . 36 . 22 . . . 51 . . . . . 41 . . . . . 43 . 191 24 Melee 239 | . . . . . . . . . . 73 . . . 36 . . . . . . . . . . 12 118 . Knockbacks 13 | . . . . . . . . . . 1 . . 1 1 . . . . . . 1 . . . 9 . . Impact 4 | . . . . . . . . . . 1 . . 1 1 . . . . . . 1 . . . . . . Kinetic 8 | . . . . . . . . . . . . . . . . . . . . . . . . . 8 . . Secondary 1 | . . . . . . . . . . . . . . . . . . . . . . . . . 1 . . Self-Inflicted Damage 576 | . . . . . . 57 . . . . . 167 . . . 68 71 . . . . 51 . . 45 48 69 Shots 12 | . . . . . . 3 . . . . . 3 . . . 2 1 . . . . 1 . . . 1 1 Rammed 40 | . 3 1 5 4 . 5 6 . . . . 1 2 . . 1 8 1 . . 1 . . . 2 . . Targets Rammed 41 | . 3 1 5 5 . 5 6 . . . . 1 2 . . 1 8 1 . . 1 . . . 2 . . Kicked . | . . . . . . . . . . . . . . . . . . . . . . . . . . . . Crushed 1 | . . . . 1 . . . . . . . . . . . . . . . . . . . . . . . Highest Temperature 376 | . 99 . 125 60 . 243 134 219 12 . 116 277 376 371 30 184 212 285 102 40 334 255 184 195 . 312 232 Average Temperature 55 | . 25 . 26 21 . 94 35 54 8 . 45 79 66 85 15 31 21 43 21 25 86 60 137 84 . 88 81 Received Heat Transfer 5290 | . 228 . 381 142 . 99 261 468 18 . . 345 108 225 . 318 341 273 . . 242 1147 . 58 69 306 261 Effects 5 | . . . . . . . . . . . . 1 . . . . . . . . 3 . . . . 1 . Energy Bleed 2 | . . . . . . . . . . . . 1 . . . . . . . . . . . . . 1 . Interference 3 | . . . . . . . . . . . . . . . . . . . . . 3 . . . . . . Siege Activations 34 | . . . . . . . . . . . . 1 . 1 . 7 5 5 1 . 2 9 . . . 2 1 Total Turns 470 | . . . . . . . . . . . . 22 . 32 . 71 102 71 17 . 36 92 . . . 13 14 Longest Duration 56 | . . . . . . . . . . . . 22 . 32 . 29 56 29 17 . 22 31 . . . 9 14 Martial Activations . | . . . . . . . . . . . . . . . . . . . . . . . . . . . . Shielding Activations . | . . . . . . . . . . . . . . . . . . . . . . . . . . . . Robots Disrupted . | . . . . . . . . . . . . . . . . . . . . . . . . . . . . Combat Hostiles . | . . . . . . . . . . . . . . . . . . . . . . . . . . . . Robots Corrupted 23 | . . . . . . . . . . 2 . . . . . . . . . . . . . . 2 18 1 Combat Hostiles 20 | . . . . . . . . . . . . . . . . . . . . . . . . . 1 18 1 Parts Fried 54 | . . . . . . . . . . 7 . . . . . . . . . . . . . . 5 39 3 Impact Corruptions 6 | . . . . . . . . . . 3 . . . 1 . . . . . . . . . . 2 . . Robots Melted 24 | . . . . . . . . . . 1 . 2 1 1 . 1 2 1 1 1 2 7 . 2 . 2 . Combat Hostiles 22 | . . . . . . . . . . 1 . 2 1 1 . 1 2 1 1 1 2 6 . 1 . 2 . Parts Melted 154 | . 1 . . . . . . 1 . 1 . 6 11 6 1 5 30 8 1 3 18 37 . 15 2 8 . Heat Transferred 57531 | . 407 . 148 . . . . . 150 2550 50 3625 4325 2025 275 5825 8221 5500 1000 1924 3862 12186 . 1776 843 2752 87 Parts Sabotaged 1 | . . . . . . . . . . . . . . . . . . . . . . . . . . 1 . Parts Stolen . | . . . . . . . . . . . . . . . . . . . . . . . . . . . . Parts Stripped . | . . . . . . . . . . . . . . . . . . . . . . . . . . . . Power Chain Reactions 6 | . . . . . . . . . . . . . . . . . . . . . . . . . . 5 1 Alert | -11 -10 -10 -9 -9 -9 -8 -8 -8 -7 -7 -7 -7 -7 -7 -6 -6 -5 -5 -4 -4 -4 -4 -4 -3 -2 -2 -2 ------- Run | Yrd Mat Min Mat Min Exi Min Mat Gar Fac Was Fac Gar Fac Gar Fac Gar Fac Gar Fac Was Fac Arm Lab Res Res Qua Sec Maximum Alert Level 5 | . . . 1 . . . . 3 2 . . 4 2 3 2 4 2 4 3 . . 2 . . . 5 4 Low Security (%) 51 | 100 100 100 79 100 . 100 100 28 19 100 100 30 . . . 3 35 . . 100 100 40 . 100 100 18 . Level 1 16 | . . . 20 . . . . 3 63 . . 5 54 8 62 25 39 . . . . 52 . . . 7 . Level 2 14 | . . . . . . . . 44 17 . . 32 45 32 37 30 24 26 72 . . 7 . . . 10 . Level 3 8 | . . . . . . . . 23 . . . 18 . 58 . 32 . 22 27 . . . . . . 16 9 Level 4 5 | . . . . . . . . . . . . 12 . . . 8 . 50 . . . . . . . 10 90 Level 5 . | . . . . . . . . . . . . . . . . . . . . . . . . . . . . High Security 3 | . . . . . . . . . . . . . . . . . . . . . . . . . . 35 . Max Security . | . . . . . . . . . . . . . . . . . . . . . . . . . . . . Peak Influence 2395 | 15 170 63 359 199 . 127 81 992 499 59 142 1197 658 986 517 1206 632 1457 764 180 142 587 . 177 181 2395 1347 Initial 1347 | . . 63 . 129 . . 33 . 499 59 . 71 627 313 517 153 632 401 764 180 . 67 . . 54 81 1347 Average 374 | 2 22 5 160 54 . 20 18 497 283 3 45 567 392 743 367 646 313 996 603 35 21 223 . 83 70 1096 1240 Influence Increases 16856 | 50 545 . 1100 183 . 345 375 1102 10 1 189 1393 983 693 100 1123 966 1146 99 2 531 1732 . 416 473 3210 89 Destroy 0b10 Robot/C 9480 | . 300 . 680 120 . 220 220 640 . . 60 860 460 500 60 600 620 740 40 . 320 1240 . 220 280 1280 20 Destroy 0b10 Robot/NC 535 | 50 30 . 95 15 . 35 45 . 5 . 10 . 80 . . 10 45 5 5 . 5 20 . 30 15 30 5 Destroy Leader 1526 | . 66 . 172 20 . 40 82 20 . . 22 40 180 50 20 30 114 50 10 . 42 244 . 52 60 202 10 Allied During Kill 733 | . . . . . . . . 8 . . 92 98 59 86 . . . 57 . . 94 . . . . 239 . Successful Hack 503 | . 41 . 41 . . . 10 . . . . . 76 12 18 14 41 26 42 . 26 28 . . 46 82 . Select Force Hacks 120 | . 60 . 60 . . . . . . . . . . . . . . . . . . . . . . . . Disable Machine 525 | . . . . 15 . . 15 15 . . . . 45 . . . 60 30 . . . 60 . 30 . 255 . Anti-Garrison Action 1000 | . . . . . . . . 300 . . . 250 . . . 350 . 100 . . . . . . . . . Destroy Structure 1894 | . 18 . 22 13 . 50 3 29 5 1 5 145 23 45 2 104 86 63 2 2 14 50 . 84 57 1047 24 Partial Spotted 30 | . . . . . . . . . . . . . 15 . . . . . . . . . . . 15 . . Lose Combat Pursuer 510 | . 30 . 30 . . . . 90 . . . . 45 . . 15 . 75 . . 30 90 . . . 75 30 Influence Decreases 15780 | 50 381 164 767 516 . 260 460 150 793 170 87 298 1732 155 867 136 1598 263 1041 517 393 1624 246 318 427 959 1408 Entered New Map 5438 | . . 101 . 204 . . 52 . 453 110 . 31 570 135 469 66 574 173 693 335 . 71 246 . 44 63 1048 Time Decay 6858 | 50 351 63 617 312 . 260 402 . 190 51 67 . 642 . 398 . 654 . 198 182 243 648 . 308 306 686 230 Lost Part 1003 | . 30 . . . . . 6 70 . . . 40 10 10 . 70 50 30 . . . 320 . 10 77 150 130 Lost Ally 706 | . . . . . . . . 80 . 9 20 227 60 10 . . 20 60 . . 150 10 . . . 60 . Purge Threat 1775 | . . . 150 . . . . . 150 . . . 450 . . . 300 . 150 . . 575 . . . . . Squads Dispatched 133 | . 3 . 6 . . . 2 . 1 . 1 . 10 . 3 . 9 . 3 . 3 9 . 2 3 75 3 Investigation 13 | . 2 . 2 . . . 2 . . . . . 2 . 1 . 2 . . . . 1 . . 1 . . Extermination 29 | . . . . . . . . . 1 . . . 6 . 2 . 4 . . . 2 4 . 1 2 6 1 Reinforcement 22 | . 1 . 4 . . . . . . . 1 . 2 . . . 3 . 1 . 1 4 . 1 . 4 . Assault 68 | . . . . . . . . . . . . . . . . . . . 2 . . . . . . 64 2 Garrison 1 | . . . . . . . . . . . . . . . . . . . . . . . . . . 1 . Intercept . | . . . . . . . . . . . . . . . . . . . . . . . . . . . . Searches Triggered . | . . . . . . . . . . . . . . . . . . . . . . . . . . . . Construction Impeded . | . . . . . . . . . . . . . . . . . . . . . . . . . . . . Haulers Reinforced 4 | . . . . . . . . . . . . . 2 . . . 1 . . . 1 . . . . . . Active Scanning Responses . | . . . . . . . . . . . . . . . . . . . . . . . . . . . . Cargo Convoy Interrupts 1 | . . . . . . . . . . . . . . . . . 1 . . . . . . . . . . Alert ID Control Effect 33 | . . . . . . . . . . . . . . . . . . . . . . . . . . 33 . Stealth | -11 -10 -10 -9 -9 -9 -8 -8 -8 -7 -7 -7 -7 -7 -7 -6 -6 -5 -5 -4 -4 -4 -4 -4 -3 -2 -2 -2 --------- Run | Yrd Mat Min Mat Min Exi Min Mat Gar Fac Was Fac Gar Fac Gar Fac Gar Fac Gar Fac Was Fac Arm Lab Res Res Qua Sec Distress Signals 17 | . . . 4 . . . 1 . . . . . . . . . 2 . . . 3 4 . 1 . . 2 Communications Jammed 153 | . . . . . . . . . . . 1 . . . . 1 10 . 1 . . 129 . 1 8 1 1 Distress Signals 150 | . . . . . . . . . . . . . . . . 1 8 . 1 . . 129 . 1 8 1 1 Times Spotted 613 | . 17 . 47 10 . 12 20 28 2 6 4 42 26 24 5 29 35 37 6 5 22 90 . 12 17 97 20 Peak Tracking Total 12 | . 3 . 4 6 . 5 3 4 1 3 3 6 3 6 2 4 4 8 3 2 4 7 . 2 3 10 12 Tactical Retreats 22 | . 1 . 2 . . . . 3 . . . . 3 . . 1 . 3 . . 1 3 . . . 4 1 Traps | -11 -10 -10 -9 -9 -9 -8 -8 -8 -7 -7 -7 -7 -7 -7 -6 -6 -5 -5 -4 -4 -4 -4 -4 -3 -2 -2 -2 ------- Run | Yrd Mat Min Mat Min Exi Min Mat Gar Fac Was Fac Gar Fac Gar Fac Gar Fac Gar Fac Was Fac Arm Lab Res Res Qua Sec Traps Triggered 20 | . 1 . . . . . 2 2 1 . . 1 5 1 1 2 . . 1 . . 1 . . . 1 1 Indirectly . | . . . . . . . . . . . . . . . . . . . . . . . . . . . . Trap Hack Attempts . | . . . . . . . . . . . . . . . . . . . . . . . . . . . . Triggered . | . . . . . . . . . . . . . . . . . . . . . . . . . . . . Disarmed . | . . . . . . . . . . . . . . . . . . . . . . . . . . . . Reprogrammed . | . . . . . . . . . . . . . . . . . . . . . . . . . . . . Reused . | . . . . . . . . . . . . . . . . . . . . . . . . . . . . Traps Extracted . | . . . . . . . . . . . . . . . . . . . . . . . . . . . . Installed . | . . . . . . . . . . . . . . . . . . . . . . . . . . . . Triggered . | . . . . . . . . . . . . . . . . . . . . . . . . . . . . Machines | -11 -10 -10 -9 -9 -9 -8 -8 -8 -7 -7 -7 -7 -7 -7 -6 -6 -5 -5 -4 -4 -4 -4 -4 -3 -2 -2 -2 ---------- Run | Yrd Mat Min Mat Min Exi Min Mat Gar Fac Was Fac Gar Fac Gar Fac Gar Fac Gar Fac Was Fac Arm Lab Res Res Qua Sec Machines Disabled 48 | . . . . 2 . . 1 4 . . . 4 3 . . 4 4 2 . . 1 4 . 2 . 17 . Max in Single Turn 4 | . . . . 1 . . 1 1 . . . 2 1 . . 2 4 1 . . 1 1 . 1 . 1 . Garrison Access 1 | . . . . . . . . . . . . . . . . . . . . . . . . . . 1 . Garrison Relay 4 | . . . . . . . . . . . . 2 . . . 2 . . . . . . . . . . . Phase Generator 3 | . . . . . . . . 1 . . . 1 . . . 1 . . . . . . . . . . . Machines Repaired . | . . . . . . . . . . . . . . . . . . . . . . . . . . . . Machines Dismantled 3 | . . . . . . . . 2 . . . . . . . . . 1 . . . . . . . . . Machines Sabotaged . | . . . . . . . . . . . . . . . . . . . . . . . . . . . . Overloaded Fab Kills . | . . . . . . . . . . . . . . . . . . . . . . . . . . . . Hacking | -11 -10 -10 -9 -9 -9 -8 -8 -8 -7 -7 -7 -7 -7 -7 -6 -6 -5 -5 -4 -4 -4 -4 -4 -3 -2 -2 -2 --------- Run | Yrd Mat Min Mat Min Exi Min Mat Gar Fac Was Fac Gar Fac Gar Fac Gar Fac Gar Fac Was Fac Arm Lab Res Res Qua Sec Machines Accessed 112 | . 10 . 14 . 2 . 11 2 1 . 1 2 13 1 4 3 11 2 3 . 4 6 . 2 5 14 1 Terminals 74 | . 7 . 9 . . . 8 2 1 . . 2 8 1 1 3 5 2 3 . 2 3 . 2 3 11 1 Fabricators 10 | . . . . . . . . . . . . . 3 . . . 3 . . . 1 2 . . 1 . . Repair Stations 10 | . 1 . 2 . . . 1 . . . . . 1 . 1 . 2 . . . 1 1 . . . . . Recycling Units 5 | . 2 . 2 . . . . . . . . . . . . . . . . . . . . . 1 . . Scanalyzers 5 | . . . 1 . . . 1 . . . . . . . 1 . . . . . . . . . . 2 . Garrison Access 6 | . . . . . . . 1 . . . 1 . 1 . 1 . 1 . . . . . . . . 1 . Total Hacks 293 | . 35 . 44 . 2 . 34 4 2 . 1 2 38 2 16 6 31 5 6 . 9 14 . 2 13 26 1 Successful 165 | . 19 . 29 . 2 . 23 . 1 . 1 1 21 1 11 2 16 2 4 . 5 8 . . 7 12 . Failed 126 | . 16 . 14 . . . 10 4 1 . . 1 17 1 5 4 15 3 2 . 4 6 . 2 6 14 1 Catastrophic 23 | . 2 . . . . . 1 . . . . . 2 . . 2 4 1 1 . 1 . . 1 2 5 1 Database Lockouts 2 | . . . 1 . . . 1 . . . . . . . . . . . . . . . . . . . . Manual 123 | . 25 . 19 . 1 . 18 . 1 . . . 14 1 . 3 6 3 . . 1 10 . . 4 17 . Terminals 187 | . 22 . 25 . . . 27 4 2 . . 2 23 2 5 6 14 5 6 . 5 8 . 2 8 20 1 Fabricators 30 | . . . . . . . . . . . . . 12 . . . 10 . . . 2 4 . . 2 . . Repair Stations 47 | . 10 . 15 . . . 2 . . . . . 2 . 8 . 6 . . . 2 2 . . . . . Recycling Units 8 | . 3 . 2 . . . . . . . . . . . . . . . . . . . . . 3 . . Scanalyzers 11 | . . . 2 . . . 2 . . . . . . . 2 . . . . . . . . . . 5 . Garrison Access 8 | . . . . . . . 3 . . . 1 . 1 . 1 . 1 . . . . . . . . 1 . Terminal Hacks 55 | . 1 . 5 . 2 . 9 . 1 . . 1 8 1 3 2 5 2 4 . 1 4 . . 3 3 . Record 4 | . . . . . 1 . . . . . . . . . . . . . . . . . . . 2 1 . Part Schematic 1 | . 1 . . . . . . . . . . . . . . . . . . . . . . . . . . Robot Schematic 1 | . . . 1 . . . . . . . . . . . . . . . . . . . . . . . . Robot Analysis 2 | . . . . . . . 1 . . . . . 1 . . . . . . . . . . . . . . Prototype ID Bank 5 | . . . 1 . . . 2 . . . . . 1 . . . . . 1 . . . . . . . . Open Door 2 | . . . . . . . . . . . . 1 . . . . . . . . . . . . . 1 . Branch Access Points 3 | . . . . . . . . . . . . . . . 1 . . . . . 1 . . . 1 . . Emergency Access Points 1 | . . . . . . . . . . . . . . . . . . 1 . . . . . . . . . Terminal Index 2 | . . . . . . . . . . . . . . . . . 1 . . . . 1 . . . . . Garrison Index 1 | . . . . . . . . . . . . . . . . . 1 . . . . . . . . . . Alert Level 1 | . . . 1 . . . . . . . . . . . . . . . . . . . . . . . . Unreport Threat 10 | . . . 1 . . . . . 1 . . . 3 . . . 2 . 1 . . 2 . . . . . Locate Traps 5 | . . . . . . . 1 . . . . . 1 . 1 . . . 1 . . . . . . 1 . Surveillance Status 1 | . . . . . . . 1 . . . . . . . . . . . . . . . . . . . . Recall Extermination 1 | . . . . . . . . . . . . . . . 1 . . . . . . . . . . . . Hauler Manifests 3 | . . . . . . . 2 . . . . . 1 . . . . . . . . . . . . . . Registered Components 1 | . . . . . . . 1 . . . . . . . . . . . . . . . . . . . . Zone Layout 6 | . . . 1 . . . 1 . . . . . 1 . . . 1 . 1 . . 1 . . . . . Garrison Registry 2 | . . . . . . . . . . . . . . 1 . . . 1 . . . . . . . . . Patrol Navigation 1 | . . . . . . . . . . . . . . . . 1 . . . . . . . . . . . Security Stations 1 | . . . . . . . . . . . . . . . . 1 . . . . . . . . . . . Proto ID Catalog 1 | . . . . . 1 . . . . . . . . . . . . . . . . . . . . . . Fabricator Hacks 12 | . . . . . . . . . . . . . 5 . . . 3 . . . 1 2 . . 1 . . Network Status 6 | . . . . . . . . . . . . . 1 . . . 2 . . . 1 1 . . 1 . . Load Schematic 2 | . . . . . . . . . . . . . 2 . . . . . . . . . . . . . . Build 4 | . . . . . . . . . . . . . 2 . . . 1 . . . . 1 . . . . . Repair Station Hacks 39 | . 10 . 12 . . . 2 . . . . . 2 . 6 . 5 . . . 2 . . . . . . Scan Component 21 | . 5 . 7 . . . 1 . . . . . 1 . 3 . 3 . . . 1 . . . . . . Repair 18 | . 5 . 5 . . . 1 . . . . . 1 . 3 . 2 . . . 1 . . . . . . Recycling Unit Hacks . | . . . . . . . . . . . . . . . . . . . . . . . . . . . . Scanalyzer 4 | . . . . . . . 1 . . . . . . . 1 . . . . . . . . . . 2 . Retrieve Study 4 | . . . . . . . 1 . . . . . . . 1 . . . . . . . . . . 2 . Garrison Access Hacks 6 | . . . . . . . 1 . . . 1 . 1 . 1 . 1 . . . . . . . . 1 . Unlock Access 5 | . . . . . . . 1 . . . 1 . 1 . 1 . 1 . . . . . . . . . . Seal Access 1 | . . . . . . . . . . . . . . . . . . . . . . . . . . 1 . Unauthorized Hacks 49 | . 8 . 12 . . . 10 . . . . . 5 . . . 2 . . . 1 2 . . 3 6 . Terminals 33 | . 6 . 10 . . . 8 . . . . . 2 . . . . . . . . 1 . . . 6 . Assimilate 3 | . . . 2 . . . 1 . . . . . . . . . . . . . . . . . . . . Botnet 7 | . 1 . 1 . . . 1 . . . . . 2 . . . . . . . . 1 . . . 1 . Operators 2 | . . . 1 . . . 1 . . . . . . . . . . . . . . . . . . . . Skim 21 | . 5 . 6 . . . 5 . . . . . . . . . . . . . . . . . . 5 . Fabricators 7 | . . . . . . . . . . . . . 3 . . . 2 . . . 1 . . . 1 . . Prioritize 2 | . . . . . . . . . . . . . 2 . . . . . . . . . . . . . . Haulers 5 | . . . . . . . . . . . . . 1 . . . 2 . . . 1 . . . 1 . . Repair Stations 1 | . . . . . . . . . . . . . . . . . . . . . . 1 . . . . . Patch 1 | . . . . . . . . . . . . . . . . . . . . . . 1 . . . . . Recycling Units 6 | . 2 . 2 . . . . . . . . . . . . . . . . . . . . . 2 . . Reject 1 | . . . . . . . . . . . . . . . . . . . . . . . . . 1 . . Recyclers 1 | . . . . . . . . . . . . . . . . . . . . . . . . . 1 . . Tunnel 4 | . 2 . 2 . . . . . . . . . . . . . . . . . . . . . . . . Scanalyzers . | . . . . . . . . . . . . . . . . . . . . . . . . . . . . Garrison Access 2 | . . . . . . . 2 . . . . . . . . . . . . . . . . . . . . Reprogram 1 | . . . . . . . 1 . . . . . . . . . . . . . . . . . . . . Intercept 1 | . . . . . . . 1 . . . . . . . . . . . . . . . . . . . . Data Cores Recovered 3 | . . . . . . . . . . . . . 1 . . . . . . . . . . . 1 . 1 Used . | . . . . . . . . . . . . . . . . . . . . . . . . . . . . Hacking Detections 91 | . 7 . 10 . . . 8 2 1 . 1 1 12 1 4 3 8 2 3 . 4 5 . 2 5 11 1 Full Trace Events 6 | . . . . . . . . 1 . . . . 2 . . . 2 . . . . . . . 1 . . Feedback Events . | . . . . . . . . . . . . . . . . . . . . . . . . . . . . Feedback Blocked . | . . . . . . . . . . . . . . . . . . . . . . . . . . . . Robot Schematics Acquired 3 | . . . 1 . . . . . . . . . . . . . . . . . . . . . . 2 . Robots Built 2 | . . . . . . . . . . . . . 2 . . . . . . . . . . . . . . Authchips . | . . . . . . . . . . . . . . . . . . . . . . . . . . . . Time 80 | . . . . . . . . . . . . . 80 . . . . . . . . . . . . . . Total Robot Build Rating 2 | . . . . . . . . . . . . . 2 . . . . . . . . . . . . . . Part Schematics Acquired 5 | . 1 . . . . . . . . . . . . . . . . . . . . . . . . 4 . Parts Built 4 | . . . . . . . . . . . . . . . . . 2 . . . . 2 . . . . . Authchips . | . . . . . . . . . . . . . . . . . . . . . . . . . . . . Time 208 | . . . . . . . . . . . . . . . . . 139 . . . . 69 . . . . . Total Part Build Rating 36 | . . . . . . . . . . . . . . . . . 18 . . . . 18 . . . . . Part Studies Acquired 4 | . . . . . . . 1 . . . . . . . 1 . . . . . . . . . . 2 . Parts Repaired 18 | . 5 . 5 . . . 1 . . . . . 1 . 3 . 2 . . . 1 . . . . . . Time 707 | . 130 . 220 . . . 60 . . . . . 13 . 156 . 84 . . . 44 . . . . . . Parts Recycled . | . . . . . . . . . . . . . . . . . . . . . . . . . . . . Recycled Matter . | . . . . . . . . . . . . . . . . . . . . . . . . . . . . Retrieved Matter . | . . . . . . . . . . . . . . . . . . . . . . . . . . . . Retrieved Components . | . . . . . . . . . . . . . . . . . . . . . . . . . . . . Parts Scanalyzed . | . . . . . . . . . . . . . . . . . . . . . . . . . . . . Part Schematics Acquired . | . . . . . . . . . . . . . . . . . . . . . . . . . . . . Parts Damaged . | . . . . . . . . . . . . . . . . . . . . . . . . . . . . Bothacking | -11 -10 -10 -9 -9 -9 -8 -8 -8 -7 -7 -7 -7 -7 -7 -6 -6 -5 -5 -4 -4 -4 -4 -4 -3 -2 -2 -2 ------------ Run | Yrd Mat Min Mat Min Exi Min Mat Gar Fac Was Fac Gar Fac Gar Fac Gar Fac Gar Fac Was Fac Arm Lab Res Res Qua Sec Used RIF Installer 6 | . . . . . . . . 2 . . . 1 . 1 . 1 . 1 . . . . . . . . . Zone Cloak 1 | . . . . . . . . . . . . . . . . 1 . . . . . . . . . . . Robot Detection 1 | . . . . . . . . . . . . 1 . . . . . . . . . . . . . . . Patrol Navigation 1 | . . . . . . . . . . . . . . . . . . 1 . . . . . . . . . Alert ID Control 1 | . . . . . . . . 1 . . . . . . . . . . . . . . . . . . . Autoassimilate 1 | . . . . . . . . . . . . . . 1 . . . . . . . . . . . . . Robots Hacked 30 | . . . . . 4 . . . . 6 . . . . 1 2 5 1 . 6 . 2 . . . 3 . Non-combat 13 | . . . . . 3 . . . . . . . . . 1 2 5 . . . . 2 . . . . . Combat 17 | . . . . . 1 . . . . 6 . . . . . . . 1 . 6 . . . . . 3 . Autoassimilated 3 | . . . . . . . . . . . . . . . . . . . . . . . . . . 3 . Robot Hacks Applied 32 | . . . . . 4 . . . . 6 . . . . 1 2 6 1 . 6 . 4 . . . 2 . parse_system 7 | . . . . . 4 . . . . . . . . . . . . 1 . . . . . . . 2 . find_chute 1 | . . . . . . . . . . . . . . . 1 . . . . . . . . . . . . find_fabricator 1 | . . . . . . . . . . . . . . . . . 1 . . . . . . . . . . drop_inventory 4 | . . . . . . . . . . . . . . . . . 4 . . . . . . . . . . find_recycling 1 | . . . . . . . . . . . . . . . . . 1 . . . . . . . . . . purge_threat 2 | . . . . . . . . . . . . . . . . . . . . . . 2 . . . . . ignore_targets 12 | . . . . . . . . . . 6 . . . . . . . . . 6 . . . . . . . streamctrl_low 1 | . . . . . . . . . . . . . . . . . . . . . . 1 . . . . . formatsys_low 3 | . . . . . . . . . . . . . . . . 2 . . . . . 1 . . . . . Relay Couplers Released 18 | . . . . . . . . . . . . 10 . . . 7 1 . . . . . . . . . . Machine Destruction 18 | . . . . . . . . . . . . 10 . . . 7 1 . . . . . . . . . . Attached 8 | . . . . . . . . . . 1 . . . . . 1 1 . . . . 1 . . . 4 . Fabnet Peak Effective % . | . . . . . . . . . . . . . . . . . . . . . . . . . . . . Robots Rewired 7 | . . . . . . . . 3 . . . 2 . . . . . 2 . . . . . . . . . Allies Hacked 3 | . . . . . . . . 2 . . . . . . . . . . . . . . . . . 1 . Hacks Repelled 1 | . . . . . . . . . . . . . . . . . . . . . . . . . . 1 . Allies | -11 -10 -10 -9 -9 -9 -8 -8 -8 -7 -7 -7 -7 -7 -7 -6 -6 -5 -5 -4 -4 -4 -4 -4 -3 -2 -2 -2 -------- Run | Yrd Mat Min Mat Min Exi Min Mat Gar Fac Was Fac Gar Fac Gar Fac Gar Fac Gar Fac Was Fac Arm Lab Res Res Qua Sec Total Allies 62 | . . . 1 . . . . 5 . 20 . 4 2 2 . 2 . 3 . 19 . 1 . . . 3 . Largest Group 19 | . . . 1 1 1 1 . 3 . 19 15 12 2 3 . 2 2 2 . 19 17 1 . . . 3 . Highest-Rated Group 684 | . . . 10 9 9 9 . 59 . 465 350 279 160 189 . 46 46 238 . 684 584 23 . . . 564 . Highest-Rated Ally 344 | . . . 10 9 9 9 . 39 . 35 31 80 80 95 . 23 23 119 . 50 46 23 . . . 344 . Total Orders 75 | . . . 2 8 . . . . . . 4 . 11 . . 6 18 1 2 . 10 2 . 4 2 5 . STAY 17 | . . . 1 4 . . . . . . . . 5 . . 2 1 1 . . . . . . . 3 . ROAM 2 | . . . . 1 . . . . . . . . 1 . . . . . . . . . . . . . . FOLLOW 9 | . . . 1 3 . . . . . . . . 1 . . 2 . . . . . . . . . 2 . AID 6 | . . . . . . . . . . . . . 2 . . 2 . . . . . 2 . . . . . EXPLORE 21 | . . . . . . . . . . . 2 . 2 . . . 8 . 1 . 4 . . 3 1 . . RETURN 20 | . . . . . . . . . . . 2 . . . . . 9 . 1 . 6 . . 1 1 . . Ally Attacks 537 | . . . . . . . . 23 . 128 34 60 42 26 . . . 18 . . 66 . . . . 140 . Total Damage 14724 | . . . . . . . . 353 . 1850 461 934 1625 1137 . . . 361 . . 1347 . . . . 6656 . Kills 82 | . . . . . . . . 1 . 3 4 5 15 12 . . . 4 . . 5 . . . . 33 . Allies Corrupted 3 | . . . . . . . . 1 . 2 . . . . . . . . . . . . . . . . . Allies Melted 3 | . . . . . . . . . . . . 1 . . . . 1 . . . . . . . . 1 . Intel | -11 -10 -10 -9 -9 -9 -8 -8 -8 -7 -7 -7 -7 -7 -7 -6 -6 -5 -5 -4 -4 -4 -4 -4 -3 -2 -2 -2 ------- Run | Yrd Mat Min Mat Min Exi Min Mat Gar Fac Was Fac Gar Fac Gar Fac Gar Fac Gar Fac Was Fac Arm Lab Res Res Qua Sec Active Infowar (turns) 31945 | 182 2351 849 2600 1134 1059 1454 62 . 396 1146 131 418 1551 365 953 1968 2425 1325 413 951 1298 2585 29 857 711 4242 490 Optics 5754 | . . . . . . . . . . . . . . . . . . . . . . . . 326 711 4227 490 Sensors 476 | . . . . . . . . . . . . . . . . . . . . . . . . . . 476 . Seismic 24468 | 182 2351 849 2600 1134 1059 1454 62 . 396 1146 . 313 1551 227 600 713 1806 137 411 951 1160 1839 . 284 711 2220 312 Cloaking 3644 | . . . . . . . . . 1 . . . . . . 2 533 . . . 696 1353 27 618 414 . . Spoofing 1 | . . . . . . . . . . . . . . 1 . . . . . . . . . . . . . Jamming 14533 | . . . . . . . . . . . 131 413 156 137 353 1839 2425 1325 413 919 1281 2585 29 857 711 540 419 Robot Analysis Total 2 | . . . . . . . 1 . . . . . 1 . . . . . . . . . . . . . . Derelict Logs Recovered 4 | . . 2 . 2 . . . . . . . . . . . . . . . . . . . . . . . Drone Launches 25 | . . . . . . . . . . . 3 . 2 . . . 9 . 1 . 6 . . 3 1 . . Drone Recoveries 21 | . . . . . . . . . . . 2 . . . . . 9 . 1 . 6 . . 2 1 . . Exploration | -11 -10 -10 -9 -9 -9 -8 -8 -8 -7 -7 -7 -7 -7 -7 -6 -6 -5 -5 -4 -4 -4 -4 -4 -3 -2 -2 -2 ------------- Run | Yrd Mat Min Mat Min Exi Min Mat Gar Fac Was Fac Gar Fac Gar Fac Gar Fac Gar Fac Was Fac Arm Lab Res Res Qua Sec Turns Passed 39041 | 259 2379 849 2629 1143 1059 2074 1631 2062 396 1146 267 1624 2302 825 953 1968 2425 1335 413 951 1298 2714 39 857 711 4242 490 Spaces Moved 18082 | 39 1027 528 1235 668 461 740 830 1015 212 592 139 788 1256 398 301 940 1146 597 200 390 411 755 10 361 325 2470 248 Core 62 | . . . . . . . . . . . . . . . . . . . . . . 2 . . . . 60 Treads 14683 | 39 1027 528 1235 668 461 740 830 1015 212 592 139 788 1256 398 301 940 1146 597 200 390 411 489 . . . 93 188 Legs 479 | . . . . . . . . . . . . . . . . . . . . . . 264 10 205 . . . Wheels 2858 | . . . . . . . . . . . . . . . . . . . . . . . . 156 325 2377 . Hover . | . . . . . . . . . . . . . . . . . . . . . . . . . . . . Flight . | . . . . . . . . . . . . . . . . . . . . . . . . . . . . Fastest Speed 50 | 160 160 160 160 160 160 235 156 156 162 160 160 160 160 160 160 160 160 160 170 170 255 100 262 150 150 122 50 Average Speed 171 | 160 160 160 160 160 227 235 157 159 162 160 160 160 160 160 161 160 161 161 174 204 255 248 262 192 164 152 169 Slowest Speed 600 | 160 240 160 160 160 240 240 160 216 162 162 160 160 160 160 240 160 240 240 255 255 255 600 262 262 170 210 205 Overloaded Moves . | . . . . . . . . . . . . . . . . . . . . . . . . . . . . Propulsion Burnouts . | . . . . . . . . . . . . . . . . . . . . . . . . . . . . Robots Hopped . | . . . . . . . . . . . . . . . . . . . . . . . . . . . . Potential Cave-ins 6 | . . . . . . . . . . . . . . . . . . . . . 3 1 . . . 2 . Cave-ins Triggered . | . . . . . . . . . . . . . . . . . . . . . . . . . . . . Exploration Rate (%) 54 | 4 98 97 92 100 72 99 62 90 7 95 3 94 52 45 6 92 34 68 10 94 18 47 5 12 13 98 19 Regions Visited 27 Branch Regions 8 Pre-discovered Areas 14 | . 3 1 4 2 1 . 3 . . . . . . . . . . . . . . . . . . . . Known Exits Taken 10 | . . 1 1 . . 1 1 . . . 1 . 1 . 1 . 1 . . . 1 . . . 1 . . Unknown Exits Taken 8 | 1 1 . . 1 1 . . . . . . . . . . . . . . . . 1 1 1 . 1 . Scrap Searched 5 | . . 1 . 3 . 1 . . . . . . . . . . . . . . . . . . . . . Spaces Dug 163 | . 4 . . . . 9 . 16 5 . 6 20 9 10 1 18 18 7 1 . 5 10 . 3 4 15 2 Terrain Destroyed 892 | . 18 . 22 14 . 69 . 33 6 1 6 135 13 15 2 111 44 25 1 1 13 27 . 81 20 221 14 Melee 58 | . . . . . . . . 4 4 . . 14 . 10 . 18 1 7 . . . . . . . . . Projectile 155 | . 6 . . . . . . . 2 1 6 . 13 . 2 1 20 . 1 1 13 23 . 10 20 34 2 AOE 679 | . 12 . 22 14 . 69 . 29 . . . 121 . 5 . 92 23 18 . . . 4 . 71 . 187 12 Terrain Rammed . | . . . . . . . . . . . . . . . . . . . . . . . . . . . . Walls Destroyed . | . . . . . . . . . . . . . . . . . . . . . . . . . . . . Machines Disabled . | . . . . . . . . . . . . . . . . . . . . . . . . . . . . Actions | -11 -10 -10 -9 -9 -9 -8 -8 -8 -7 -7 -7 -7 -7 -7 -6 -6 -5 -5 -4 -4 -4 -4 -4 -3 -2 -2 -2 --------- Run | Yrd Mat Min Mat Min Exi Min Mat Gar Fac Was Fac Gar Fac Gar Fac Gar Fac Gar Fac Was Fac Arm Lab Res Res Qua Sec Total 23561 | 191 1603 531 1741 716 470 1016 1081 1297 253 729 172 960 1433 505 755 1203 1508 803 239 486 557 1243 24 454 426 2844 321 Wait 2651 | 120 457 . 283 12 . 219 131 75 9 45 17 35 52 35 434 99 157 63 13 4 54 199 9 17 11 72 29 Move 18060 | 38 1026 527 1234 667 460 739 829 1014 212 591 139 787 1255 397 301 939 1146 596 200 389 410 754 9 360 324 2469 248 Hop . | . . . . . . . . . . . . . . . . . . . . . . . . . . . . Pick Up 231 | 3 10 2 20 1 2 3 13 19 6 5 . 5 18 5 5 12 18 8 1 4 1 30 . 10 12 12 6 Fast Attach 77 | 1 7 . 7 . . . . 3 . 2 . . 1 . . 1 6 5 1 3 6 9 . 8 3 13 1 Attach 115 | . 4 . 3 . . 1 3 5 2 . . 4 4 2 3 7 8 6 2 . 1 23 6 2 7 14 8 Detach 34 | . . . 1 . . . . . . 2 . . 2 . . 1 2 3 1 1 1 6 . 2 1 8 3 Swap 510 | 4 13 1 31 7 3 11 15 38 8 9 9 32 30 19 6 39 39 27 10 14 28 59 . 14 11 31 2 Drop 216 | 1 5 . 33 4 1 2 18 21 7 11 . 2 15 5 . 7 19 10 1 10 8 4 . 6 8 15 3 Fire 1472 | 24 78 . 124 20 . 36 66 89 4 61 7 54 54 23 6 73 104 63 10 59 47 159 . 35 47 208 21 Melee 125 | . . . . . 4 . . 16 5 3 . 40 . 19 . 24 1 9 . 2 . . . . . 2 . Ram 2 | . . . . . . . . . . . . . . . . . . . . . . . . . 2 . . Kick . | . . . . . . . . . . . . . . . . . . . . . . . . . . . . Crush 39 | . 3 1 5 5 . 5 6 . . . . 1 2 . . 1 8 1 . . 1 . . . . . . Escape Stasis . | . . . . . . . . . . . . . . . . . . . . . . . . . . . . Rewire 4 | . . . . . . . . . . . . . . . . . . 4 . . . . . . . . . Trap . | . . . . . . . . . . . . . . . . . . . . . . . . . . . . Miscellaneous 25 | . . . . . . . . 17 . . . . . . . . . 8 . . . . . . . . . Route ------- -11/Scrapyard -10/Materials (discovered 5 exits: *Mat x3 / [*Min] / [*Sub]) -10/Mines (discovered 3 exits: *Mat x2 / [*Sub]) -9/Materials (discovered 5 exits: *Mat x3 / *Min x2) -9/Mines (discovered 4 exits: *Mat x2 / *Exi / [*Zio]) -9/Exiles (discovered 2 exits: [*Min x2]) -8/Mines (discovered 2 exits: *Mat x2) -8/Materials (discovered 4 exits: *Fac / *Sto x2 / Gar) -8/Garrison (discovered 3 exits: *Fac x3) -7/Factory (discovered 2 exits: Low x2) -7/Waste -7/Factory -7/Garrison (discovered 3 exits: *Fac x3) -7/Factory (discovered 3 exits: *Low x2 / Gar) -7/Garrison (discovered 3 exits: *Fac x3) -6/Factory (discovered 5 exits: Low x2 / Ext x2 / Gar) -6/Garrison (discovered 3 exits: *Fac x3) -5/Factory (discovered 2 exits: *Fac / Gar) -5/Garrison (discovered 3 exits: *Fac x3) -4/Factory -4/Waste -4/Factory (discovered 3 exits: Upp x2 / *Arm) -4/Armory -4/Lab -3/Research -2/Research (discovered 2 exits: *Qua x2) -2/Quarantine (discovered 3 exits: [*Acc] / *Sec / [*Frg]) -2/Section 7 History --------- Turn | Location | Event 26 | -11/Scrapyard | Discovered new exit (range 3) 260 | -11/Scrapyard | Entered Materials 307 | -10/Materials | Discovered new exit (range 16) 318 | -10/Materials | Build established: Mutant 497 | -10/Materials | Discovered new exit (range 16) 1249 | -10/Materials | Discovered new exit (range 9) 1314 | -10/Materials | Discovered new exit (range 13) 1742 | -10/Materials | Discovered new exit (range 8) 1819 | -10/Materials | Loaded intel: 2 recycling unit locations 1845 | -10/Materials | Loaded intel: 14 trap records 1868 | -10/Materials | Learned Storage terminal intel 2134 | -10/Materials | Repaired Lgt. Treads 2162 | -10/Materials | Repaired Lgt. Treads 2189 | -10/Materials | Repaired Assault Rifle 2217 | -10/Materials | Repaired Lgt. Treads 2244 | -10/Materials | Repaired Seismic Detector 2639 | -10/Materials | Entered Mines 2640 | -10/Mines | Identified exit to Materials 2649 | -10/Mines | Found a hidden stash of uninstalled traps 2660 | -10/Mines | Learned location of Mines (-8) 2720 | -10/Mines | Learned Materials interactive machine intel 3044 | -10/Mines | Received a Rocket Launcher from a helpful Derelict 3129 | -10/Mines | Found a Scrap Suit stashed away for nefarious purposes 3451 | -10/Mines | Discovered new exit (range 6) 3488 | -10/Mines | Entered Materials 3488 | -9/Materials | Evolved 2 slots: Propulsion x1, Utility x1 3489 | -9/Materials | Loaded intel: 18 interactive machine locations 4114 | -9/Materials | Discovered new exit (range 5) 4348 | -9/Materials | Discovered new exit (range 7) 4967 | -9/Materials | Identified exit to Materials 5040 | -9/Materials | Identified exit to Mines 5105 | -9/Materials | Learned location of Zion (-7) 5160 | -9/Materials | Learned 2 Storage zone layouts 5203 | -9/Materials | Learned location of 1 exit from Storage 5527 | -9/Materials | Central database locked down 5809 | -9/Materials | Repaired Enh. Autogun 5969 | -9/Materials | Repaired Enh. Autogun 6009 | -9/Materials | Repaired Reactive Plating 6046 | -9/Materials | Repaired Broken Lgt. Treads 6074 | -9/Materials | Repaired Seismic Detector 6117 | -9/Materials | Entered Mines 6117 | -9/Mines | Accompanied by 1 ally 6181 | -9/Mines | Assembled infested the area 6347 | -9/Mines | Deemed a non-threat by the Exiles lab entrance 6349 | -9/Mines | Discovered new exit (range 5) 6982 | -9/Mines | A Derelict revealed a hidden shortcut to a safe place 7260 | -9/Mines | Entered Exiles 7260 | -9/Exiles | Accompanied by 1 ally 7281 | -9/Exiles | Discovered new exit (range 15) 7300 | -9/Exiles | Met 8R-AWN 7327 | -9/Exiles | Met EX-HEX 7431 | -9/Exiles | Met EX-DEC 7661 | -9/Exiles | Met EX-BIN 7701 | -9/Exiles | Aligned with FarCom system 7703 | -9/Exiles | Given EX-Vault access code 7761 | -9/Exiles | Opened EX-Vault 7777 | -9/Exiles | Found Cloak of Protection 7793 | -9/Exiles | Found Skeleton Box 7839 | -9/Exiles | Warned to stay clear of 0b10 Research branches 8298 | -9/Exiles | Discovered new exit (range 10) 8319 | -9/Exiles | Stole two prototypes: Cloak of Protection, Skeleton Box 8319 | -9/Exiles | Entered Mines 8319 | -8/Mines | Accompanied by 1 ally 8404 | -8/Mines | Discovered exit to Materials (range 15) 8405 | -8/Mines | Core integrity fell below 50% 8572 | -8/Mines | Discovered exit to Materials (range 10) 10393 | -8/Mines | Entered Materials 10393 | -8/Materials | Evolved 2 slots: Propulsion x1, Utility x1 10394 | -8/Materials | Identified exit to Storage 10409 | -8/Materials | Central database locked down 10586 | -8/Materials | Discovered exit to Storage (range 15) 10938 | -8/Materials | Build established: Scavenger-Mutant 11112 | -8/Materials | Discovered new exit (range 15) 11432 | -8/Materials | Build established: Mutant 11590 | -8/Materials | Repaired Enh. Autogun 11611 | -8/Materials | Learned location of 1 exit from Recycling 11711 | -8/Materials | Learned Factory trap positions 11760 | -8/Materials | Identified exit to Garrison 11787 | -8/Materials | Learned 2 Storage zone layouts 11838 | -8/Materials | Learned Factory stockpile data 11972 | -8/Materials | Learned 2 Storage zone layouts 12024 | -8/Materials | Entered Garrison 12082 | -8/Garrison | Phase Generator disabled 12193 | -8/Garrison | Installed Relay Interface Framework 12222 | -8/Garrison | Triggered checkpoint 12411 | -8/Garrison | P-60 Hacker assimilated allied Bruiser 3c 12509 | -8/Garrison | Build established: Scavenger-Mutant 12614 | -8/Garrison | Triggered checkpoint 12625 | -8/Garrison | Triggered checkpoint 12627 | -8/Garrison | Triggered checkpoint 12730 | -8/Garrison | Expanded RIF knowledge: Alert ID Control 12880 | -8/Garrison | Discovered new exit (range 8) 12951 | -8/Garrison | Triggered checkpoint 13108 | -8/Garrison | Spotted B-75 Beast 13156 | -8/Garrison | Destroyed B-75 Beast 13183 | -8/Garrison | Lost 6 parts (2n3u1w) 13296 | -8/Garrison | Triggered checkpoint 13382 | -8/Garrison | Discovered new exit (range 12) 13421 | -8/Garrison | Build established: Mutant 13456 | -8/Garrison | Triggered checkpoint 13540 | -8/Garrison | Spotted B-75 Beast 13602 | -8/Garrison | Triggered checkpoint 13752 | -8/Garrison | Triggered checkpoint 13801 | -8/Garrison | Build established: Scavenger-Mutant 13803 | -8/Garrison | Rescued a captive Derelict 13805 | -8/Garrison | Rescued a captive Derelict 13871 | -8/Garrison | Discovered new exit (range 10) 13877 | -8/Garrison | Spotted B-75 Beast 14086 | -8/Garrison | Entered Factory 14086 | -7/Factory | Evolved 2 slots: Utility x2 14087 | -7/Factory | Identified exit to Lower Caves 14088 | -7/Factory | Loaded intel: 77 trap records 14088 | -7/Factory | FarCom data flow suspended 14482 | -7/Factory | Sucked down chute 14482 | -7/Factory | Entered Waste 14483 | -7/Waste | Met a frightened Derelict 14539 | -7/Waste | Spotted C-40 Crusher 14552 | -7/Waste | Spotted C-40 Crusher 14554 | -7/Waste | Spotted C-40 Crusher 14574 | -7/Waste | Spotted C-40 Crusher 14577 | -7/Waste | Spotted C-40 Crusher 14585 | -7/Waste | Spotted C-40 Crusher 14672 | -7/Waste | Destroyed C-40 Crusher 14857 | -7/Waste | Destroyed C-40 Crusher 14878 | -7/Waste | Destroyed C-40 Crusher 14902 | -7/Waste | Destroyed C-40 Crusher 15026 | -7/Waste | Warlord forces began an assault 15159 | -7/Waste | Allies destroyed C-40 Crusher 15283 | -7/Waste | Discovered new exit (range 12) 15628 | -7/Waste | Entered Factory 15628 | -7/Factory | Accompanied by 15 allies 15883 | -7/Factory | Identified exit to Garrison 15895 | -7/Factory | Entered Garrison 15895 | -7/Garrison | Accompanied by 12 allies 15977 | -7/Garrison | Triggered checkpoint 16036 | -7/Garrison | Lost 7 allies 16131 | -7/Garrison | Build established: Mutant 16199 | -7/Garrison | Lost 3 allies 16388 | -7/Garrison | Triggered checkpoint 16401 | -7/Garrison | Triggered checkpoint 16487 | -7/Garrison | Triggered checkpoint 16617 | -7/Garrison | Discovered new exit (range 9) 16772 | -7/Garrison | Destroyed 9 combat bots 16835 | -7/Garrison | Triggered checkpoint 16924 | -7/Garrison | Expanded RIF knowledge: Robot Detection 16965 | -7/Garrison | Discovered new exit (range 10) 17015 | -7/Garrison | Build established: Scavenger-Mutant 17131 | -7/Garrison | Phase Generator disabled 17131 | -7/Garrison | Discovered new exit (range 15) 17245 | -7/Garrison | Destroyed 8 combat bots 17288 | -7/Garrison | Found embedded Infiltrators 17312 | -7/Garrison | Triggered checkpoint 17519 | -7/Garrison | Entered Factory 17519 | -7/Factory | Accompanied by 2 allies 17602 | -7/Factory | Allied Derelicts emerged from ambush trap array 18175 | -7/Factory | Discovered exit to Lower Caves (range 9) 18367 | -7/Factory | Discovered exit to Lower Caves (range 55) 18578 | -7/Factory | Repaired Huge Storage Unit 18796 | -7/Factory | Fabricated M-13 Machinist (x1) 19633 | -7/Factory | Fabricated M-13 Machinist (x1) 19760 | -7/Factory | Identified exit to Garrison 19821 | -7/Factory | Entered Garrison 19821 | -7/Garrison | Accompanied by 1 ally 19870 | -7/Garrison | Found embedded Infiltrators 19873 | -7/Garrison | Triggered checkpoint 20146 | -7/Garrison | Triggered checkpoint 20243 | -7/Garrison | Core integrity fell below 50% 20273 | -7/Garrison | Triggered checkpoint 20365 | -7/Garrison | Discovered new exit (range 82) 20365 | -7/Garrison | Discovered new exit (range 54) 20365 | -7/Garrison | Discovered new exit (range 14) 20615 | -7/Garrison | Expanded RIF knowledge: Autoassimilate 20646 | -7/Garrison | Entered Factory 20646 | -6/Factory | Evolved 2 slots: Power x1, Utility x1 20647 | -6/Factory | Identified exit to Extension 20795 | -6/Factory | Repaired Hvy. Treads? 20876 | -6/Factory | Repaired Hvy. Treads 20921 | -6/Factory | Repaired Gatling Laser+ 21004 | -6/Factory | Identified exit to Lower Caves 21222 | -6/Factory | Identified exit to Garrison 21599 | -6/Factory | Entered Garrison 21767 | -6/Garrison | Spotted B-75 Beast 21814 | -6/Garrison | Destroyed B-75 Beast 21951 | -6/Garrison | Triggered checkpoint 22136 | -6/Garrison | Discovered new exit (range 10) 22156 | -6/Garrison | Triggered checkpoint 22195 | -6/Garrison | Learned Factory security intel 22382 | -6/Garrison | Triggered checkpoint 22458 | -6/Garrison | Phase Generator disabled 22724 | -6/Garrison | Discovered new exit (range 10) 22782 | -6/Garrison | Expanded RIF knowledge: Zone Cloak 22806 | -6/Garrison | Triggered checkpoint 23022 | -6/Garrison | Garrison Relay disabled 23167 | -6/Garrison | Triggered checkpoint 23274 | -6/Garrison | Discovered new exit (range 14) 23354 | -6/Garrison | Garrison Relay disabled 23501 | -6/Garrison | Found Relay Coupler [Proto] 23504 | -6/Garrison | Found Relay Coupler [Proto] 23507 | -6/Garrison | Found Relay Coupler [Proto] 23510 | -6/Garrison | Found Relay Coupler [Proto] 23567 | -6/Garrison | Entered Factory 23567 | -5/Factory | Accompanied by 2 allies 23567 | -5/Factory | Evolved 2 slots: Utility x2 23739 | -5/Factory | Discovered new exit (range 14) 23804 | -5/Factory | Build established: Bothacker-Mutant 24126 | -5/Factory | Fabricated Enh. Quantum Rifle (x2) 24343 | -5/Factory | Repaired Hvy. Treads 24557 | -5/Factory | Cargo convoy interrupted 25038 | -5/Factory | Repaired Hvy. Treads 25264 | -5/Factory | Spotted B-75 Beast 25992 | -5/Factory | Identified exit to Garrison 25992 | -5/Factory | Entered Garrison 26064 | -5/Garrison | Triggered checkpoint 26116 | -5/Garrison | Spotted Striker 26116 | -5/Garrison | Spotted Striker 26139 | -5/Garrison | Destroyed Striker 26171 | -5/Garrison | Destroyed Striker 26204 | -5/Garrison | Rewired Executioner 26208 | -5/Garrison | Rewired Executioner 26353 | -5/Garrison | Found Adv. Kinecellerator 26360 | -5/Garrison | Found Exp. Targeting Computer 26369 | -5/Garrison | Found Exp. Core Analyzer 26382 | -5/Garrison | Triggered checkpoint 26507 | -5/Garrison | Discovered new exit (range 10) 26645 | -5/Garrison | Triggered checkpoint 26687 | -5/Garrison | Destroyed 8 combat bots 26698 | -5/Garrison | Discovered new exit (range 15) 26698 | -5/Garrison | Discovered new exit (range 68) 26698 | -5/Garrison | Discovered new exit (range 66) 26761 | -5/Garrison | Rescued a captive Derelict 26938 | -5/Garrison | Expanded RIF knowledge: Patrol Navigation 26952 | -5/Garrison | Triggered checkpoint 27034 | -5/Garrison | Triggered checkpoint 27156 | -5/Garrison | Triggered checkpoint 27253 | -5/Garrison | Build established: Botlord-Mutant 27327 | -5/Garrison | Entered Factory 27327 | -4/Factory | Evolved 2 slots: Power x1, Utility x1 27577 | -4/Factory | First assault squad dispatched 27740 | -4/Factory | Sucked down chute 27740 | -4/Factory | Entered Waste 27791 | -4/Waste | Spotted C-40 Crusher 27793 | -4/Waste | Spotted C-40 Crusher 27801 | -4/Waste | Spotted C-40 Crusher 27805 | -4/Waste | Spotted C-40 Crusher 27820 | -4/Waste | Spotted C-40 Crusher 27850 | -4/Waste | Spotted C-40 Crusher 27903 | -4/Waste | Discovered new exit (range 12) 27961 | -4/Waste | Destroyed C-40 Crusher 28034 | -4/Waste | Destroyed C-40 Crusher 28123 | -4/Waste | Destroyed C-40 Crusher 28152 | -4/Waste | Destroyed C-40 Crusher 28156 | -4/Waste | Destroyed C-40 Crusher 28200 | -4/Waste | Destroyed C-40 Crusher 28336 | -4/Waste | Build established: Bothacker-Mutant 28346 | -4/Waste | Warlord forces began an assault 28691 | -4/Waste | Entered Factory 28691 | -4/Factory | Accompanied by 17 allies 28870 | -4/Factory | Lost 8 allies 28979 | -4/Factory | Lost 3 allies 29324 | -4/Factory | Identified exit to Upper Caves 29324 | -4/Factory | Identified exit to Armory 29673 | -4/Factory | Repaired Gatling Laser+ 29989 | -4/Factory | Entered Armory 30355 | -4/Armory | Spotted B-86 Titan 30763 | -4/Armory | Fabricated Enh. Nova Cannon (x2) 31077 | -4/Armory | Destroyed 9 combat bots 31511 | -4/Armory | Lost 3 parts (1p1u1w) 31873 | -4/Armory | System corruption reached 10% 31961 | -4/Armory | Lost 10 parts (2p3n3u2w) 32337 | -4/Armory | Build established: Scavenger-Mutant 32478 | -4/Armory | Core integrity fell below 50% 32679 | -4/Armory | Discovered new exit (range 3) 32703 | -4/Armory | Entered Lab 32719 | -4/Lab | Discovered new exit (range 9) 32732 | -4/Lab | Lost 8 parts (2p2n3u1w) 32742 | -4/Lab | Entered Research 32742 | -3/Research | Evolved 2 slots: Propulsion x2 32788 | -3/Research | Discovered new exit (range 32) 33599 | -3/Research | Entered another Research area 33599 | -2/Research | Evolved 2 slots: Utility x2 33753 | -2/Research | Lost 5 parts (3n1u1w) 33940 | -2/Research | Identified exit to Quarantine 34310 | -2/Research | Entered Quarantine 34502 | -2/Quarantine | Build established: Bothacker-Mutant 34555 | -2/Quarantine | Discovered new exit (range 17) 34588 | -2/Quarantine | System corruption reached 10% 34747 | -2/Quarantine | Spotted Fortress 34748 | -2/Quarantine | Autoassimilated Fortress with RIF 34822 | -2/Quarantine | Cryocooling Duct disabled 34837 | -2/Quarantine | Ambient heat levels rising (+20) 34837 | -2/Quarantine | Non-combat units ordered to evacuate 35123 | -2/Quarantine | Found Quantum Capacitor 35348 | -2/Quarantine | Met incapacitated Sigix Warrior 35348 | -2/Quarantine | Lockdown squad dispatched 35351 | -2/Quarantine | Acquired the access code to the Sigix quarantine chamber 35354 | -2/Quarantine | Unlocked Sigix quarantine chamber 35362 | -2/Quarantine | Found Sigix Containment Pod 35394 | -2/Quarantine | Spotted Lightning 35394 | -2/Quarantine | Spotted Lightning 35395 | -2/Quarantine | Autoassimilated Lightning with RIF 35399 | -2/Quarantine | Spotted Lightning 35400 | -2/Quarantine | Autoassimilated Lightning with RIF 35417 | -2/Quarantine | Allies destroyed Lightning 35477 | -2/Quarantine | Found Sigix Corpse 35581 | -2/Quarantine | Found Gamma Bomb Array 35704 | -2/Quarantine | Garrison activated, responded to threat 36310 | -2/Quarantine | First assault squad dispatched 36486 | -2/Quarantine | Found Alien Artifact 36898 | -2/Quarantine | Lost 4 parts (1p1n1u1w) 36901 | -2/Quarantine | Destroyed 8 combat bots 37057 | -2/Quarantine | High security lockdown imminent 37078 | -2/Quarantine | Destroyed 11 combat bots 37085 | -2/Quarantine | Lost 4 parts (1u3w) 37125 | -2/Quarantine | Cryocooling Duct disabled 37137 | -2/Quarantine | High security lockdown engaged 37140 | -2/Quarantine | Ambient heat levels rising (+20) 37303 | -2/Quarantine | Found Alien Artifact 38125 | -2/Quarantine | Lost 4 parts (1p1n2u) 38352 | -2/Quarantine | Discovered new exit (range 18) 38352 | -2/Quarantine | Discovered new exit (range 18) 38552 | -2/Quarantine | Entered Section 7 38802 | -2/Section 7 | First assault squad dispatched 38812 | -2/Section 7 | Found Quantum Capacitor 38930 | -2/Section 7 | Spotted S7 Guard 38939 | -2/Section 7 | Spotted S7 Guard 38991 | -2/Section 7 | Core integrity fell below 50% 39016 | -2/Section 7 | Core integrity fell below 20% 39028 | -2/Section 7 | Spotted B-90 Cyclops 39039 | -2/Section 7 | Identified Subatomic Replicator 39039 | -2/Section 7 | Identified Core Reset Matrix 39039 | -2/Section 7 | Used Core Reset Matrix 39042 | -2/Section 7 | Destroyed by H-88 Terminator with Heavy Machine Gun Last Messages --------------- 39036_ System corrupted: Energy discharge (-35). 39038_ C-45 Heavy ARC bursts open, deploying its payload. 39038_ G-73 Enforcer unfolds itself. 39038_ L-61 Swordsman unfolds itself. 39038_ E-15 Imp unfolds itself. 39038_ Slug penetrates Terminal. 39038_ Terminal disabled. 39038_ Exp. Core Analyzer destroyed. 39038_ Slug penetrates Terminal. 39038_ U-05 Engineer suffers critical hit (Destroy). 39038_ Slug penetrates Dark Matter Chamber. 39038_ Slug penetrates Terminal. 39039_ Identified Subatomic Replicator. 39039_ Unable to initiate replication process, detached Subatomic Replicator. 39039_ Identified Core Reset Matrix. 39039_ Wiping memory... 39039_ Relay Coupler [Proto] fries itself. 39039_ CORE RESET 39042_ Slug penetrates Dark Matter Chamber. Map ----- +----------------------------------------------------+ | ?????????????????????????????????????????????????? | | ?????????????????????????????????????????????????? | | ?????????????????????????????????????????????????? | | ?????????????????????????????????????????????????? | | ?????????????????#???????????????????????????????? | | ?????????????????# ??????????????????????????????? | | ???????????????### ??????????????????????????????? | | ???????????????? ??????????????????????????????? | | ???????????????? ??????????????????????????????? | | ????????????????? ?????????????????????????????? | | ????????????????? ?????????????????????????????? | | ?????????????????# ?????????????????????????????? | | ?????????????????# ????????????????????????????? | | ?????????????????#p ????????????????????????????? | | ?????????????????# p ???????????????? ???????????? | | ?????????????????# ???????????? ???????????? | | ?????????????????#c ??????????? #????????????? | | ?????????????????# ?????????? #????????????? | | ?????????????????# ########## #????????????? | | ?????????????????# #????????????? | | ?????????????????# h h k #????????????? | | ?????????????????# " """ ###??????????? | | ?????????????????# "T """ !!! BB#??????????? | | ?????????????????# """ !!! BB#??????????? | | ?????????????????# ec """ !! #????????????? | | ?????????????????# u @ """ #????????????? | | ???????? """ #????????????? | | ???? ggl """ #????????????? | | ???? g #????????????? | | ???? k % #????????????? | | ???? #############+###########+###????????????? | | ???? ???????????????????????????????????????????? | | ?????????????????????????????????????????????????? | | ?????????????????????????????????????????????????? | | ?????????????????????????????????????????????????? | | ?????????????????????????????????????????????????? | | ?????????????????????????????????????????????????? | | ?????????????????????????????????????????????????? | | ?????????????????????????????????????????????????? | | ?????????????????????????????????????????????????? | | ?????????????????????????????????????????????????? | | ?????????????????????????????????????????????????? | | ?????????????????????????????????????????????????? | | ?????????????????????????????????????????????????? | | ?????????????????????????????????????????????????? | | ?????????????????????????????????????????????????? | | ?????????????????????????????????????????????????? | | ?????????????????????????????????????????????????? | | ?????????????????????????????????????????????????? | | ?????????????????????????????????????????????????? | +----------------------------------------------------+ Best States ------------- Heat Dissipation 142 Coolant Potential 100 Energy Generation 63 Energy Capacity 1565 Matter Stores 328 Matter Capacity 450 Sight Range 23 Robot Scan Range 18 Terrain Scan Density 10 Jamming Range 16 Cloak Strength 5 Base Temperature (-) 200 Armor Coverage 900 Resistance: KI 30 Resistance: EM 15 Evasion (%) 50 Targeting Accuracy 12 Core Analysis 8 Recoil Reduction 4 Offensive Hacking 14 Defensive Hacking 14 Relay Coupler Types 1 Relay Coupler Value 37 Item Schematics ----------------- None Robot Schematics ------------------ None Fabricated ------------ M-13 Machinist | x1 | -7/Factory M-13 Machinist | x1 | -7/Factory Enh. Quantum Rifle | x2 | -5/Factory | Preloaded Enh. Nova Cannon | x2 | -4/Armory | Preloaded Repaired ---------- Lgt. Treads | 15% | -10/Materials Lgt. Treads | 17% | -10/Materials Assault Rifle | 64% | -10/Materials Lgt. Treads | 78% | -10/Materials Seismic Detector | 20% | -10/Materials Enh. Autogun | 38% | -9/Materials Enh. Autogun | 64% | -9/Materials Reactive Plating | 55% | -9/Materials Lgt. Treads | 83% | -9/Materials | Broken Seismic Detector | 55% | -9/Materials Enh. Autogun | 1% | -8/Materials Huge Storage Unit | 20% | -7/Factory Hvy. Treads | 16% | -6/Factory Hvy. Treads | 19% | -6/Factory Gatling Laser | 20% | -6/Factory Hvy. Treads | 26% | -5/Factory Hvy. Treads | 22% | -5/Factory Gatling Laser | 49% | -4/Factory Studied --------- None Alien Tech Used ----------------- Subatomic Replicator Core Reset Matrix Achievements -------------- None Challenges ------------ None Game ------ Seed SkeletonElectronRifle Manual? 0 Play Time 06:09:06 Cumulative 410.4 hours Start 2025.11.24 @ 21:38:14 End 2025.11.27 @ 01:18:02 Sessions 3 Manual Loads 0 Difficulty Rogue Special Mode None Game No. 145 Rogue 145 Adventurer 0 Explorer 0 Win Type - Total 8 Types 4/0/2/1/0/0/1/0/0/0 Lore% 67 Gallery% 78 Achievement% 56 Wizard Run 0 Options --------- Layout 0 ASCII 0 Keyboard 0 Movement Numpad Keybinds 1 Fullscreen 2 Font 18/X11 Map View 76x50 Zoom Use 0% Tactical HUD 1 Map Filters NONE Filters NONE Steam 1 RUN: d6949885-7340-483a-9180-c7db26c19d49